Cogmind - Beta 16 --- EXPLORER MODE // 2026.01.09 @ 12:55:43 Player: K.K.Y. Result: Destroyed by 12-ECF(R) with Subdweller Beam Cannon Performance ------------- Evolutions (0) 0 Regions Visited (3) 600 Robots Destroyed (36) 180 Value Destroyed (870) 870 Prototype IDs (12) 240 Alien Tech Used (0) 0 Bonus (-455) -455 TOTAL SCORE: 1435 Bonus ------- Friendly Fire -455 Cogmind --------- Core Integrity 0/250 Matter 264/300 Energy 160/160 System Corruption 0% Temperature Cool (9) Movement Rolling (125) Ox3 Location -10/Subcaves Parts ------- > --- POWER (1) -------- Light Nuclear Core > --- PROPULSION (2) --- Wheel > --- UTILITY (3) ------ Large Storage Unit Structural Scanner Sensor Array > --- WEAPON (2) ------- Heavy Assault Rifle Battle Cannon > --- INVENTORY (15) --- Improved Ion Engine Light Treads Huge Storage Unit Core Shielding Light Armor Plating Light Armor Plating Medium Laser Small Laser Beam Rifle Particle Gun Autobeam Beam Cannon Beam Cannon Rocket Launcher Multitool Peak State ------------ > --- POWER ------------ Light Nuclear Core > --- PROPULSION ------- Wheel Wheel > --- UTILITY ---------- Large Storage Unit Structural Scanner Sensor Array > --- WEAPON ----------- Barrage Gun Battle Cannon > --- INVENTORY -------- Huge Storage Unit Core Shielding Light Armor Plating Light Armor Plating Medium Laser Small Laser Particle Gun Autobeam Beam Cannon Beam Cannon Rocket Launcher Multitool [Rating: 14] Favorites ----------- Power Ion Engine Engine Ion Engine Power Core Light Nuclear Core Propulsion Light Treads Treads Light Treads Wheel Wheel Utility Large Storage Unit Device Improved Terrain Scanner Storage Large Storage Unit Protection Core Shielding Weapon Medium Laser Energy Gun Medium Laser Energy Cannon Beam Cannon Ballistic Gun Barrage Gun Ballistic Cannon Battle Cannon Special Weapon Mining Laser Build | -11 -10 -10 -10 ------- Run | Yrd Mat Min Sub Slots Evolved 1 | . 1 . . Power . | . . . . Propulsion . | . . . . Utility 1 | . 1 . . Weapon . | . . . . Parts Attached 24 | 7 3 . 14 Power 2 | 1 . . 1 Engine 1 | 1 . . . Core 1 | . . . 1 Reactor . | . . . . Propulsion 8 | 2 . . 6 Treads 4 | 2 . . 2 Leg . | . . . . Wheel 4 | . . . 4 Hover . | . . . . Flight . | . . . . Utility 6 | 2 2 . 2 Device 3 | . 1 . 2 Storage 2 | 1 1 . . Processor . | . . . . Hackware . | . . . . Protection 1 | 1 . . . Artifact . | . . . . Weapon 8 | 2 1 . 5 Energy Gun 2 | 2 . . . Energy Cannon 2 | . . . 2 Ballistic Gun 2 | . . . 2 Ballistic Cannon 1 | . . . 1 Launcher . | . . . . Special Weapon 1 | . 1 . . Impact Weapon . | . . . . Slashing Weapon . | . . . . Piercing Weapon . | . . . . Special Melee Weapon . | . . . . Unidentified Prototypes . | . . . . Parts Lost 10 | . . . 10 Power 1 | . . . 1 Propulsion 4 | . . . 4 Utility 1 | . . . 1 Weapon 4 | . . . 4 Highest Loss Streak 3 | . . . 3 To Critical Strikes . | . . . . Average Backups 10 | 1 5 8 13 Power . | . . . . Propulsion 1 | . 1 2 1 Utility 4 | . 2 3 5 Weapon 4 | . 1 3 6 Tool/Special . | . . . . Unused Backups 12 | . . . 12 Power 1 | . . . 1 Propulsion 1 | . . . 1 Utility 3 | . . . 3 Weapon 6 | . . . 6 Tool/Special 1 | . . . 1 Average Slot Usage (%) 88 | . 97 100 79 Engine 7 | . 12 12 3 Core 1 | . . . 2 Treads 19 | . 25 25 14 Wheel 3 | . . . 5 Device 8 | . 11 12 6 Storage 11 | . 9 12 12 Protection 10 | . 12 12 9 Energy Gun 10 | . 19 12 5 Energy Cannon 4 | . . . 7 Ballistic Gun 2 | . . . 5 Special Weapon 5 | . 5 12 2 Peak Build Rating 14 | 6 10 11 14 Average Rating 9 | 4 9 10 9 On Entrance 6 | . 6 10 11 Avg Prop Armor Cover (%) 6 | . . . 6 Naked Turns . | . . . . Heaviest Build 33 | 9 30 30 33 Greatest Support 40 | 40 40 40 40 Greatest Overweight (x) 8 | . . . 8 Average Overweight (x) . | . . . . Largest Inventory Capacity 15 | 10 15 15 15 Average Capacity 14 | 5 13 15 15 Most Carried 15 | 5 8 12 15 Average Carried 10 | 1 5 8 13 Final Capacity 15 | 5 15 15 15 Final Carried 15 | 3 8 12 15 Class Distribution -------------------- 100% | Hacker-Mutant Dominant Class ---------------- Hacker-Mutant | -10/Materials Hacker-Mutant | -10/Mines Hacker-Mutant | -10/Subcaves Resources | -11 -10 -10 -10 ----------- Run | Yrd Mat Min Sub Matter Collected 649 | 181 119 . 349 Remotely . | . . . . Salvage Created 1078 | 132 381 7 558 Parts 60 | 10 22 . 28 Haulers Intercepted 2 | . 2 . . Recyclers Shooed . | . . . . Parts Field Recycled . | . . . . Retrieved Matter . | . . . . Parts Self-Destructed . | . . . . Prevented . | . . . . Parts Restored . | . . . . Kills | -11 -10 -10 -10 ------- Run | Yrd Mat Min Sub Combat Hostiles Destroyed 24 | . 8 . 16 Guns 14 | . 8 . 6 Cannons 9 | . . . 9 Classes Destroyed 9 | 2 5 . 2 Builder 1 | . 1 . . Tunneler 2 | 2 . . . Hauler 2 | . 2 . . Recycler 1 | 1 . . . Turret 2 | . . . 2 Watcher 2 | . 2 . . Swarmer 7 | . 4 . 3 Grunt 4 | . 4 . . Subdweller 13 | . . . 13 Thug 2 | . . 2 . Best Kill Streak 4 | 3 4 . 4 Combat Bots Only 4 | . 4 . 4 Max Kills in Single Turn 2 | 2 1 1 1 Gunslinging . | . . . . Exploded . | . . . . Melee . | . . . . Uniques/NPCs Destroyed . | . . . . Combat | -11 -10 -10 -10 -------- Run | Yrd Mat Min Sub Hostile Shots Fired 189 | . 17 . 172 Missed 51 | . 6 . 45 Hits 138 | . 11 . 127 Projectile 138 | . 11 . 127 Critical Strikes 4 | . 1 . 3 Damage Taken 1404 | . 79 . 1325 Core 250 | . 8 . 242 Absorbed by Shields . | . . . . Redirected to Shielding 42 | . 1 . 41 Ignored by Resistances 860 | . 52 . 808 Core Remaining (%) 100 | 100 . . . Volleys Fired 179 | 5 27 7 140 Largest 2 | 2 2 2 2 Hottest 150 | 90 150 150 150 Shots Fired 287 | 10 51 14 212 Gun 150 | 10 49 7 84 Cannon 69 | . . . 69 Launcher . | . . . . Special 68 | . 2 7 59 Kinetic 65 | . . . 65 Thermal 222 | 10 51 14 147 Explosive . | . . . . Electromagnetic . | . . . . Robot Hit Streak 54 | 8 23 15 54 Robot Miss Streak 2 | . 2 . 1 Penetration Max . | . . . . Secondary Targets 1 | . 1 . . Max Gunslinging Chain 1 | . 1 . . Shots Hit Robots 173 | 8 38 14 113 Core Hits 60 | 4 21 4 31 Critical Kills 1 | . . . 1 Critical Parts Destroyed . | . . . . Critical Strikes 10 | . 2 1 7 Burn 8 | . 2 1 5 Destroy 1 | . . . 1 Blast 1 | . . . 1 Melee Attacks . | . . . . Impact . | . . . . Slashing . | . . . . Piercing . | . . . . Sneak Attacks . | . . . . Combat Hostiles . | . . . . Follow-up Attacks . | . . . . Damage Inflicted 2651 | 108 460 255 1828 Guns 1440 | 108 436 87 809 Cannons 899 | . . . 899 Explosions . | . . . . Melee . | . . . . Ramming . | . . . . Kinetic 674 | . . . 674 Thermal 1977 | 108 460 255 1154 Explosive . | . . . . Electromagnetic . | . . . . Impact . | . . . . Slashing . | . . . . Piercing . | . . . . Highest Corruption . | . . . . Average Corruption . | . . . . Corruption Purged . | . . . . Corruption Blocked . | . . . . Overload Shots . | . . . . Overflow Damage . | . . . . Projectiles . | . . . . Explosions . | . . . . Melee . | . . . . Knockbacks 4 | . . . 4 Impact . | . . . . Kinetic 4 | . . . 4 Secondary . | . . . . Self-Inflicted Damage . | . . . . Shots . | . . . . Rammed . | . . . . Targets Rammed . | . . . . Kicked . | . . . . Crushed . | . . . . Highest Temperature 268 | 60 126 194 268 Average Temperature 55 | 28 40 88 67 Received Heat Transfer 1195 | . 69 . 1126 Siege Activations . | . . . . Martial Activations . | . . . . Shielding Activations . | . . . . Robots Disrupted . | . . . . Combat Hostiles . | . . . . Robots Corrupted . | . . . . Combat Hostiles . | . . . . Parts Fried . | . . . . Impact Corruptions . | . . . . Robots Melted 1 | . . . 1 Combat Hostiles 1 | . . . 1 Parts Melted 6 | 1 2 . 3 Heat Transferred 5516 | 285 1375 683 3173 Parts Sabotaged . | . . . . Parts Stolen . | . . . . Parts Stripped . | . . . . Power Chain Reactions . | . . . . Alert | -11 -10 -10 -10 ------- Run | Yrd Mat Min Sub Maximum Alert Level . | . . . . Low Security (%) 100 | 100 100 100 . Level 1 . | . . . . Level 2 . | . . . . Level 3 . | . . . . Level 4 . | . . . . Level 5 . | . . . . High Security . | . . . . Max Security . | . . . . Peak Influence 75 | 10 75 . . Initial . | . . . . Average 3 | . 6 . . Influence Increases 357 | 15 227 . 115 Destroy 0b10 Robot/C 260 | . 160 . 100 Destroy 0b10 Robot/NC 40 | 15 25 . . Destroy Leader 38 | . 38 . . Disable Machine 4 | . 4 . . Lose Combat Pursuer 15 | . . . 15 Influence Decreases 357 | 15 227 . 115 Time Decay 357 | 15 227 . 115 Squads Dispatched . | . . . . Investigation . | . . . . Extermination . | . . . . Reinforcement . | . . . . Assault . | . . . . Garrison . | . . . . Intercept . | . . . . Searches Triggered . | . . . . Construction Impeded . | . . . . Haulers Reinforced . | . . . . Active Scanning Responses . | . . . . Cargo Convoy Interrupts . | . . . . Stealth | -11 -10 -10 -10 --------- Run | Yrd Mat Min Sub Distress Signals 1 | . 1 . . Communications Jammed . | . . . . Distress Signals . | . . . . Times Spotted 37 | . 16 . 21 Peak Tracking Total 4 | . 4 . 4 Tactical Retreats 1 | . . . 1 Traps | -11 -10 -10 -10 ------- Run | Yrd Mat Min Sub Traps Triggered . | . . . . Indirectly . | . . . . Trap Hack Attempts . | . . . . Triggered . | . . . . Disarmed . | . . . . Reprogrammed . | . . . . Reused . | . . . . Traps Extracted . | . . . . Installed . | . . . . Triggered . | . . . . Machines | -11 -10 -10 -10 ---------- Run | Yrd Mat Min Sub Machines Disabled 1 | . 1 . . Max in Single Turn 1 | . 1 . . Machines Repaired . | . . . . Machines Dismantled . | . . . . Machines Sabotaged . | . . . . Overloaded Fab Kills . | . . . . Hacking | -11 -10 -10 -10 --------- Run | Yrd Mat Min Sub Machines Accessed 11 | . 10 . 1 Terminals 8 | . 8 . . Fabricators . | . . . . Repair Stations . | . . . . Recycling Units 2 | . 2 . . Scanalyzers . | . . . . Garrison Access . | . . . . Total Hacks 16 | . 15 . 1 Successful 14 | . 13 . 1 Failed 2 | . 2 . . Catastrophic . | . . . . Database Lockouts . | . . . . Manual 11 | . 11 . . Terminals 12 | . 12 . . Fabricators . | . . . . Repair Stations . | . . . . Recycling Units 3 | . 3 . . Scanalyzers . | . . . . Garrison Access . | . . . . Terminal Hacks 3 | . 2 . 1 Robot Analysis 2 | . 2 . . Proto ID Catalog 1 | . . . 1 Fabricator Hacks . | . . . . Repair Station Hacks . | . . . . Recycling Unit Hacks 1 | . 1 . . Retrieve Components 1 | . 1 . . Scanalyzer . | . . . . Garrison Access Hacks . | . . . . Unauthorized Hacks 9 | . 9 . . Terminals 8 | . 8 . . Botnet 8 | . 8 . . Fabricators . | . . . . Repair Stations . | . . . . Recycling Units 1 | . 1 . . Reject 1 | . 1 . . Scanalyzers . | . . . . Garrison Access . | . . . . Data Cores Recovered . | . . . . Used . | . . . . Hacking Detections 3 | . 3 . . Full Trace Events . | . . . . Feedback Events . | . . . . Feedback Blocked . | . . . . Robot Schematics Acquired . | . . . . Robots Built . | . . . . Authchips . | . . . . Time . | . . . . Total Robot Build Rating . | . . . . Part Schematics Acquired . | . . . . Parts Built . | . . . . Authchips . | . . . . Time . | . . . . Total Part Build Rating . | . . . . Part Studies Acquired . | . . . . Parts Repaired . | . . . . Time . | . . . . Parts Recycled . | . . . . Recycled Matter . | . . . . Retrieved Matter . | . . . . Retrieved Components 1 | . 1 . . Parts Scanalyzed . | . . . . Part Schematics Acquired . | . . . . Parts Damaged . | . . . . Bothacking | -11 -10 -10 -10 ------------ Run | Yrd Mat Min Sub Used RIF Installer . | . . . . Robots Hacked . | . . . . Non-combat . | . . . . Combat . | . . . . Robot Hacks Applied . | . . . . Relay Couplers Released . | . . . . Fabnet Peak Effective % . | . . . . Robots Rewired . | . . . . Allies Hacked . | . . . . Hacks Repelled . | . . . . Allies | -11 -10 -10 -10 -------- Run | Yrd Mat Min Sub Total Allies . | . . . . Largest Group . | . . . . Highest-Rated Group . | . . . . Highest-Rated Ally . | . . . . Total Orders . | . . . . Ally Attacks . | . . . . Total Damage . | . . . . Kills . | . . . . Allies Corrupted . | . . . . Allies Melted . | . . . . Intel | -11 -10 -10 -10 ------- Run | Yrd Mat Min Sub Active Infowar (turns) 3111 | . 1149 1062 900 Sensors 527 | . . . 527 Terrain 2582 | . 1149 1062 371 Structural 529 | . . . 529 Robot Analysis Total 2 | . 2 . . Derelict Logs Recovered . | . . . . Drone Launches . | . . . . Drone Recoveries . | . . . . Exploration | -11 -10 -10 -10 ------------- Run | Yrd Mat Min Sub Turns Passed 5013 | 97 1154 1062 2700 Spaces Moved 2438 | 54 656 597 1131 Core 20 | 19 . . 1 Treads 1943 | 35 656 597 655 Legs . | . . . . Wheels 475 | . . . 475 Hover . | . . . . Flight . | . . . . Fastest Speed 50 | 50 160 160 95 Average Speed 158 | 121 160 160 158 Slowest Speed 450 | 160 160 160 450 Overloaded Moves . | . . . . Propulsion Burnouts . | . . . . Robots Hopped . | . . . . Potential Cave-ins . | . . . . Cave-ins Triggered . | . . . . Exploration Rate (%) 69 | 4 99 98 75 Regions Visited 3 Branch Regions 2 Pre-discovered Areas 1 | . . . 1 Known Exits Taken 3 | 1 1 1 . Unknown Exits Taken . | . . . . Scrap Searched 6 | . . . 6 Spaces Dug 6 | . . . 6 Terrain Destroyed 7 | . . . 7 Melee . | . . . . Projectile 7 | . . . 7 AOE . | . . . . Terrain Rammed . | . . . . Walls Destroyed . | . . . . Machines Disabled . | . . . . Actions | -11 -10 -10 -10 --------- Run | Yrd Mat Min Sub Total 3169 | 75 705 676 1713 Wait 490 | 2 13 69 406 Move 2435 | 53 655 596 1131 Hop . | . . . . Pick Up 33 | 7 7 4 15 Fast Attach 4 | 2 . . 2 Attach 16 | 5 2 . 9 Detach 3 | 1 . . 2 Swap 4 | . 1 . 3 Drop 5 | . . . 5 Fire 179 | 5 27 7 140 Melee . | . . . . Ram . | . . . . Kick . | . . . . Crush . | . . . . Escape Stasis . | . . . . Rewire . | . . . . Trap . | . . . . Miscellaneous . | . . . . Route ------- -11/Scrapyard -10/Materials (discovered 4 exits: *Mat x3 / *Min) -10/Mines (discovered 3 exits: *Mat x2 / *Sub) -10/Subcaves (discovered 3 exits: *Mat / *Rec / [*Scr]) History --------- Turn | Location | Event 14 | -11/Scrapyard | Identified exit to Materials 14 | -11/Scrapyard | Discovered exit to Materials (range 15) 98 | -11/Scrapyard | Entered Materials 98 | -10/Materials | Evolved 1 slot: Utility x1 248 | -10/Materials | Identified exit to Mines 248 | -10/Materials | Discovered exit to Mines (range 9) 331 | -10/Materials | Build established: Hacker-Mutant 446 | -10/Materials | Identified exit to Materials 446 | -10/Materials | Discovered exit to Materials (range 15) 663 | -10/Materials | Discovered exit to Materials (range 16) 1025 | -10/Materials | Discovered exit to Materials (range 9) 1252 | -10/Materials | Entered Mines 1284 | -10/Mines | Discovered exit to Materials (range 8) 1328 | -10/Mines | Found a hidden stash of uninstalled traps 1692 | -10/Mines | Discovered exit to Materials (range 11) 1969 | -10/Mines | Received a Rocket Launcher from a helpful Derelict 2043 | -10/Mines | Joined a pair of Derelicts in attacking an 0b10 outpost 2293 | -10/Mines | Identified exit to Subcaves 2293 | -10/Mines | Discovered exit to Subcaves (range 9) 2314 | -10/Mines | Entered Subcaves 2315 | -10/Subcaves | Approached by a straggling Scientist 2352 | -10/Subcaves | A swath of the cavern ceiling suddenly collapsed 2530 | -10/Subcaves | Identified exit to Materials 2530 | -10/Subcaves | Discovered exit to Materials (range 16) 3002 | -10/Subcaves | Core integrity fell below 50% 3034 | -10/Subcaves | Lost 3 parts (1p1n1w) 3035 | -10/Subcaves | Visited 4L-MR0's lab 3577 | -10/Subcaves | Ambushed by Subdwellers from Twisted Machinery 3615 | -10/Subcaves | Lost 3 parts (1n2w) 3644 | -10/Subcaves | Shifting Twisted Machinery released Flamer 3674 | -10/Subcaves | Identified exit to Recycling 3674 | -10/Subcaves | Discovered exit to Recycling (range 15) 3812 | -10/Subcaves | Shifting Twisted Machinery released Battle Rifle 3896 | -10/Subcaves | Core integrity fell below 20% 4071 | -10/Subcaves | Scientist uncovered a shortcut to Scraptown 4827 | -10/Subcaves | Learned location of Zion (-7) 4827 | -10/Subcaves | Met a Zionite searching for "candidates" 5014 | -10/Subcaves | Destroyed by 12-ECF(R) with Subdweller Beam Cannon Last Messages --------------- 04753_ UE-45E(z): "She is not going to be happy we haven't found any suitable candidates yet." 04754_ Acquired 7 matter. 04755_ Subatomizers dissect the Sub. Power Source. 04827_ UE-45E(z): "Hey you! It's really dangerous down here, I feel that you could die at any moment. For your health and safety might I suggest a trip to Zion?" World map updated: -7/Zion. 04916_ DV-OM1(R) knocked back. 04920_ Wheel destroyed. 04920_ DV-OM1(R) knocked back. 04922_ DV-OM1(R) destroyed. 04926_ Acquired 25 matter. 04929_ Acquired 5 matter. 04945_ Acquired 51 matter. 04948_ Acquired Imp. Ion Engine. 04951_ Acquired Beam Rifle. 04953_ Acquired Hvy. Assault Rifle. Map ----- +----------------------------------------------------+ | "#????????????????????????????????????????????? | | "#????????????????????????????????????????????? | | "#????????????????????????????????????????????? | | # #????????????????????????????????????????????? | | # ##????????????????????????????????????????????? | | ##????????????????????????????????????????????? | | #????????????????????????????????????????????? | | #????????????????????????????????????????????? | | #????????????????????????????????????????????? | | ##????????????????????????????????????????????? | | ##????????????????????????????????????????????? | | ##???????????????????????????????????????????? | | #????????????????????? ###??????????????????? | | ##????????????????????? ###??????????????????? | | #?????????????????????? ##??????????????????? | | #?????????????????????? #???????????????????? | | #????????????????????## ##???????????????????? | | #????????????????###### #???????????????????? | | ##????????????????##### ?????????????????????? | | ##?????????????????## ?????????????????????? | | #??????????????????## ??????????????????????? | | #????????????????### R %#?????????????????????? | | #???????????????### R##?????????????????????? | | ## #??????????????## ##???"##???????????????? | | #? #??????????????## ##???"##"??????????????? | | ?? #??????????????### @##??""##"""#???????????? | | ?? #???????????????### ####""""# ##???????????? | | ?? #???????????????#### ###""" " ##???????????? | | ?? ##????????????????#### ####?????????? | | ???##??????????????????## ##?????????? | | ????????????#####??????## ## # # ###?????????? | | ???????????############### ##### ?? ###?????????? | | ??????????#### ########### ###### ? ###?????????? | | ?????????#### ### ###### ? ##?????????? | | ????????#### ## ## # ## ##?????????? | | ????????### ! ## ##?????????? | | ????###### ###?????????? | | ????###### ##### # #####?????????? | | ????## ## ######## ## ######??????????? | | ????## ###### # #### #####????????????? | | ????## ###### #### ##??????????????? | | ????##### ###?### ### ###??????????????? | | ????##### ! ##??#### ####?????????????? | | #??????## ##?###### ####?????????????? | | ##????### ######?###### ##?????????????? | | #####?## ########## ## ###?????????????? | | ######## ########## #####?????????????? | | ############### #####??????????????? | | ##?####### ##########?????????????? | | ######### ###########????????????? | +----------------------------------------------------+ Best States ------------- Heat Dissipation 25 Energy Generation 14 Energy Capacity 250 Matter Stores 300 Matter Capacity 300 Sight Range 16 Robot Scan Range 14 Terrain Scan Range 16 Terrain Scan Density 10 Resistance: KI 35 Resistance: TH 35 Resistance: EX 35 Resistance: EM 35 Resistance: I 35 Resistance: S 35 Resistance: P 35 Core Shielding 20 Evasion (%) 50 Recoil Reduction 2 Offensive Hacking 20 Item Schematics ----------------- None Robot Schematics ------------------ None Fabricated ------------ Nothing Repaired ---------- Nothing Studied --------- None Alien Tech Used ----------------- None Achievements -------------- None Challenges ------------ None Game ------ Seed ShiftSapperReconstructor Manual? 0 Play Time 00:27:10 Cumulative 268.9 hours Start 2026.01.09 @ 10:58:45 End 2026.01.09 @ 12:55:43 Sessions 1 Manual Loads 0 Difficulty Explorer Special Mode None Game No. 420 Rogue 0 Adventurer 0 Explorer 420 Win Type - Total 0 Types 0/0/0/0/0/0/0/0/0/0 Lore% 72 Gallery% 69 Achievement% 54 Wizard Run 0 Options --------- Layout 1 ASCII 0 Keyboard 0 Movement Mouse Keybinds 1 Fullscreen 1 Font 24/Smallcaps Map View 50x35 Zoom Use 0% Tactical HUD 1 Map Filters NONE Filters NONE Steam 1 RUN: d48aa6c9-1aac-4549-baba-adc84da9d049